bitfinex/quotes_ETHUSD_20250925
["timestamp","ask_amount","ask_price","bid_price","bid_amount"]
[1758813370642,38.62698767,4012.0,4011.9,0.002]
[1758813370984,41.13826367,4012.0,4011.9,0.002]
[1758813371485,41.93026367,4012.0,4011.9,0.002]
[1758813371859,45.98315267,4012.0,4011.9,0.002]
[1758813373071,39.64815267,4012.0,4011.9,0.002]
[1758813373266,45.98415267,4012.0,4011.9,0.002]
[1758813373434,45.98315267,4012.0,4011.9,0.002]
[1758813373951,39.64815267,4012.0,4011.9,0.002]
[1758813374155,45.98315267,4012.0,4011.9,0.002]
[1758813375187,43.90515267,4012.0,4011.9,0.002]
[1758813375344,45.98315267,4012.0,4011.9,0.002]
[1758813376145,36.92663024,4012.0,4011.9,0.002]
[1758813376386,30.68828324,4012.0,4011.9,0.002]
[1758813376586,39.51580567,4012.0,4011.9,0.002]
[1758813376747,30.68828324,4012.0,4011.9,0.002]
[1758813376953,41.00808667,4012.0,4011.9,0.002]
[1758813377252,41.24238667,4012.0,4011.9,0.002]
[1758813377582,41.67988667,4012.0,4011.9,0.002]
[1758813377953,45.17805267,4012.0,4011.9,0.002]
[1758813378357,45.97005267,4012.0,4011.9,0.002]
[1758813379685,53.04005267,4012.0,4011.9,0.002]
[1758813379868,53.03925267,4012.0,4011.9,0.002]
[1758813380050,0.792,4011.8,4011.4,0.002]
[1758813380250,12.17625798,4011.5,4011.4,0.002]
[1758813380455,16.43225798,4011.5,4011.4,0.002]
[1758813380786,47.10405798,4011.5,4011.4,0.002]
[1758813380999,49.18205798,4011.5,4011.4,0.002]
[1758813381294,51.46903969,4011.5,4011.4,0.002]
[1758813382085,58.53903969,4011.5,4011.4,0.002]
[1758813382284,59.33103969,4011.5,4011.4,0.002]
[1758813383256,59.60700605,4011.5,4011.4,0.002]
[1758813383555,6.28514385,4011.0,4010.8,0.002]
[1758813383869,7.02808491,4010.9,4010.8,0.002]
[1758813384069,37.69988491,4010.9,4010.8,0.002]
[1758813384877,38.09099675,4010.9,4010.8,0.002]
[1758813385191,0.792,4010.6,4009.7,0.24351879]
[1758813385380,9.68342488,4010.4,4009.7,0.24351879]
[1758813385566,2.49369695,4010.2,4009.7,0.24351879]
[1758813385767,3.0,4010.0,4009.7,0.24351879]
[1758813385990,3.0,4009.8,4009.7,0.24351879]
[1758813386188,21.886313,4009.8,4009.3,2.49419114]
[1758813386394,21.107876,4009.7,4009.3,2.49420007]
[1758813386558,16.241545,4009.6,4009.3,2.49420007]
[1758813386755,4.256,4009.5,4009.4,0.4504]
[1758813386962,0.39112262,4010.3,4009.4,0.4504]
[1758813386963,2.078,4010.1,4009.5,2.49407656]
[1758813387164,2.078,4010.1,4009.6,0.6943]
[1758813387165,8.347841,4010.0,4009.6,0.6943]
[1758813387489,0.39112682,4010.7,4009.7,0.6943]
[1758813387710,0.39112682,4010.7,4010.6,2.4933925]
[1758813387858,4.64712682,4010.7,4010.6,0.6943]
[1758813388061,8.65186,4010.6,4009.0,3.0]
[1758813388266,8.65186,4010.6,4008.8,2.49450827]
[1758813388267,4.256,4010.5,4010.1,0.2439]
[1758813388462,14.694753,4010.4,4010.2,0.6943]
[1758813388692,4.256,4010.3,4010.2,0.4504]
[1758813388891,12.905453,4010.3,4010.2,0.4504]
[1758813389165,12.905453,4010.3,4010.2,0.6943]
[1758813389397,11.195453,4010.3,4010.2,3.18794121]
[1758813389618,10.093759,4010.3,4010.2,0.6943]
[1758813389813,4.771746,4010.3,4010.2,3.18794121]
[1758813390124,4.255,4010.3,4010.2,0.6943]
[1758813390326,10.93106,4010.3,4010.2,0.2439]
[1758813390524,6.649147,4010.3,4010.2,3.18794121]
[1758813390909,4.255,4010.3,4010.2,3.18794121]
[1758813391227,7.07,4011.0,4010.3,2.49357176]
[1758813391399,8.630775,4010.9,4010.6,2.49334632]
[1758813391594,4.255,4010.9,4010.7,0.4504]
[1758813391799,13.396444,4010.7,4010.2,0.2439]
[1758813392138,13.396444,4010.7,4007.6,3.00215071]
[1758813392139,2.4934989,4010.5,4009.7,0.2439]
[1758813392336,40.93842488,4010.4,4009.7,0.2439]
[1758813392543,24.002657,4010.3,4009.4,0.2439]
[1758813392833,2.49376437,4010.1,4009.4,0.2439]
[1758813393063,4.255,4010.0,4009.4,0.2439]
[1758813393723,4.255,4010.0,4009.4,2.73801243]
[1758813393923,4.255,4009.9,4009.4,0.2439]
[1758813394123,4.255,4009.8,4009.4,0.2439]
[1758813394334,4.255,4009.8,4009.5,3.18835917]
[1758813394563,4.255,4009.8,4009.6,0.6943]
[1758813394766,2.078,4010.0,4009.2,0.4504]
[1758813394767,4.255,4009.7,4009.2,0.4504]
[1758813395065,24.002657,4010.3,4009.7,2.49389065]
[1758813395069,3.0,4010.3,4009.7,2.49389065]
[1758813395235,6.333,4010.2,4009.8,0.6943]
[1758813395567,6.333,4010.2,4009.9,0.2439]
[1758813395941,6.333,4010.2,4009.3,2.49419016]
[1758813395942,0.124,4009.9,4009.4,0.4504]
[1758813396250,0.124,4009.7,4009.6,2.49397276]
[1758813396437,0.124,4009.7,4009.6,2.94437276]
[1758813396631,4.379,4009.7,4009.6,3.18827276]
[1758813396834,4.379,4009.7,4009.6,0.6943]
[1758813397048,4.379,4009.7,4009.6,3.18831436]
[1758813397783,4.379,4009.7,4008.8,2.49448596]
[1758813397784,4.379,4009.7,4009.2,0.2439]
[1758813398064,4.379,4009.7,4009.2,2.73811483]
[1758813398065,0.124,4009.5,4009.2,2.73811483]
[1758813398261,4.254,4009.4,4009.2,0.2439]
[1758813398459,4.254,4009.4,4009.2,2.49426255]
[1758813398660,4.254,4009.4,4008.9,2.94484755]
[1758813398661,4.254,4009.4,4009.0,0.2439]
[1758813399034,0.124,4009.2,4009.0,2.49437925]
[1758813399457,0.124,4009.2,4008.8,0.2439]
[1758813399762,0.124,4009.2,4008.9,2.73834651]
[1758813399952,0.124,4009.2,4009.1,2.4943254]
[1758813400698,0.124,4009.2,4009.1,3.1886254]
[1758813400896,0.124,4009.2,4009.1,2.4943254]
[1758813401086,0.124,4009.2,4009.1,2.7430254]
[1758813401380,4.378,4009.2,4009.1,3.1754254]
[1758813401584,0.124,4009.2,4009.1,3.1754254]
[1758813402976,0.124,4009.2,4009.1,2.7430254]
[1758813403468,0.124,4009.2,4009.1,2.4963254]
[1758813403802,0.124,4009.2,4009.1,0.002]
[1758813404371,0.124,4009.2,4009.1,2.4963254]
[1758813404952,0.124,4009.2,4009.1,0.002]
[1758813405483,0.1232,4009.2,4009.1,0.002]
[1758813406070,0.1232,4009.2,4009.1,2.4963254]
[1758813406377,4.3762,4009.2,4009.1,3.1754254]
[1758813406577,0.1232,4009.2,4009.1,3.1754254]
[1758813406774,7.07,4009.5,4009.1,3.1754254]
[1758813406775,4.377,4009.3,4009.1,3.1754254]
[1758813406976,4.377,4009.3,4009.2,2.49426319]
[1758813407167,0.124,4009.3,4009.2,2.74096319]
[1758813407355,0.124,4009.3,4009.2,3.17336319]
[1758813407748,0.124,4009.3,4009.2,2.49426319]
[1758813408314,0.124,4009.3,4009.2,3.17336319]
[1758813410477,0.124,4009.3,4009.2,2.49426319]
[1758813411412,0.5881,4009.3,4009.1,0.002]
[1758813411626,4.9583,4009.2,4009.1,2.4963254]
[1758813412036,0.124,4009.3,4009.2,2.49426319]
[1758813412199,7.07,4009.5,4009.4,2.49413877]
[1758813412524,7.07,4009.5,4009.4,3.17323877]
[1758813413288,1.0,4010.0,4009.9,2.49382777]
[1758813413490,5.252,4010.0,4009.9,2.49382777]
[1758813413924,1.0,4010.0,4009.9,3.19786604]
[1758813414105,1.0,4010.0,4009.9,3.29692777]
[1758813414426,1.0,4010.0,4009.9,2.86452777]
[1758813415316,1.0,4010.0,4009.9,3.29692777]
[1758813415911,1.0,4010.0,4009.9,2.61782777]
[1758813417140,1.7053,4010.0,4009.9,2.49382777]
[1758813417283,2.30113,4010.0,4009.9,2.49382777]
[1758813417625,2.42513,4010.0,4009.9,2.49382777]
[1758813418830,2.42513,4010.0,4009.3,0.124]
[1758813419028,4.251,4009.9,4009.7,2.49390104]
[1758813419231,0.7053,4009.8,4009.3,2.49415521]
[1758813419443,0.124,4009.6,4009.4,2.4940933]
[1758813419656,4.251,4009.5,4009.2,2.49423676]
[1758813419808,0.7053,4009.4,4009.1,0.002]
[1758813420011,0.8293,4009.4,4009.1,0.002]
[1758813420207,0.124,4009.4,4009.1,0.002]
[1758813420513,4.251,4009.3,4009.2,2.49426319]
[1758813420964,4.9563,4009.3,4009.1,0.002]
[1758813421119,0.7053,4009.2,4009.1,2.49630788]
[1758813421812,4.251,4009.3,4009.2,2.49426319]
[1758813422235,4.7151,4009.3,4009.1,0.002]
[1758813422435,0.7053,4009.2,4009.1,0.002]
[1758813422646,0.7053,4009.2,4009.1,2.4963254]
[1758813423348,4.251,4009.3,4009.2,2.49426319]
[1758813423553,0.124,4009.4,4009.3,2.49420098]
[1758813423847,4.374,4009.4,4009.2,2.49420224]
[1758813424011,4.25,4009.3,4009.1,0.002]
[1758813424612,0.124,4009.4,4009.2,2.49421828]
[1758813424813,4.25,4009.3,4009.1,2.49630261]
[1758813425042,0.124,4009.4,4009.1,2.49630261]
[1758813425247,4.25,4009.2,4009.1,0.002]
[1758813425864,4.22588,4009.2,4009.1,0.002]
[1758813426215,1.22588,4009.2,4009.1,0.002]
[1758813426429,0.7168,4009.5,4009.1,0.002]
[1758813426750,9.329,4009.4,4009.1,0.002]
[1758813426962,9.577,4009.4,4009.1,0.002]
[1758813427281,0.248,4009.6,4009.1,0.002]
[1758813427441,0.4688,4009.7,4009.2,2.73866319]
[1758813427640,3.501,4009.6,4009.3,2.73859938]
[1758813427985,6.501,4009.6,4009.5,2.49407656]
[1758813428130,1.0,4010.0,4009.9,2.49382777]
[1758813428438,8.25,4010.0,4009.9,2.49382777]
[1758813428646,1.0,4010.0,4009.9,2.49382777]
[1758813428950,1.0,4010.0,4009.9,3.19442777]
[1758813429365,1.0,4010.0,4009.9,2.73822777]
[1758813429865,1.0,4010.0,4009.9,2.49382777]
[1758813430040,1.0,4010.0,4009.9,3.71764576]
[1758813430240,0.001,4010.3,4010.2,2.49364121]
[1758813430456,0.001,4010.3,4010.2,2.51857762]
[1758813430769,0.0002,4010.3,4010.2,3.19424121]
[1758813431158,0.0002,4010.3,4010.2,3.21917762]
[1758813431357,0.0002,4010.3,4010.2,7.51707229]
[1758813431563,0.0002,4010.3,4010.2,8.28413588]
[1758813432442,0.0002,4010.3,4010.2,21.10913588]
[1758813432643,0.0002,4010.3,4010.2,20.31713588]
[1758813432857,0.0002,4010.3,4010.2,11.74113588]
[1758813433057,0.0002,4010.3,4010.2,7.49213588]
[1758813433239,0.0002,4010.3,4010.2,14.61113588]
[1758813434035,0.0002,4010.3,4010.2,13.81913588]
[1758813434555,0.0002,4010.3,4010.2,10.36293588]
[1758813434757,0.0002,4010.3,4010.2,10.11853588]
[1758813434942,0.0002,4010.3,4010.2,10.79223588]
[1758813435934,0.0002,4010.3,4010.2,10.91623588]
[1758813436343,0.0002,4010.3,4010.2,10.24253588]
[1758813436571,0.0002,4010.3,4010.2,8.16353588]
[1758813436869,0.0002,4010.3,4010.2,6.86564121]
[1758813437069,0.0002,4010.3,4010.2,3.29134121]
[1758813437470,0.0002,4010.3,4010.2,3.31627762]
[1758813437672,0.0002,4010.3,4010.2,3.29134121]
[1758813437867,0.0002,4010.3,4010.2,4.29464766]
[1758813439044,0.0002,4010.3,4010.2,3.86174766]
[1758813439371,0.0002,4010.3,4010.2,2.61764121]
[1758813439574,0.0002,4010.3,4010.2,6.86464121]
[1758813439775,0.0002,4010.3,4010.2,7.10544121]
[1758813440675,0.0002,4010.3,4010.2,2.61764121]
[1758813440878,0.6886,4010.3,4010.2,2.61764121]
[1758813441049,0.6886,4010.3,4010.2,2.49364121]
[1758813441578,0.0002,4010.3,4010.2,2.49364121]
[1758813441779,0.4459,4010.3,4010.2,2.49364121]
[1758813442078,0.0002,4010.3,4010.2,2.49364121]
[1758813442279,0.2429,4010.3,4010.2,2.49364121]
[1758813442450,0.6886,4010.3,4010.1,0.124]
[1758813442647,0.0002,4010.3,4010.2,2.49364121]
[1758813443077,0.0002,4010.3,4009.8,2.61787264]
[1758813443361,0.6884,4010.2,4009.8,0.124]
[1758813443569,0.2427,4010.2,4009.9,2.49382777]
[1758813443777,0.6884,4010.1,4010.0,2.49376558]
[1758813444495,0.6884,4010.1,4009.8,0.124]
[1758813444653,0.6884,4010.0,4009.8,0.124]
[1758813444847,0.6884,4010.0,4009.9,2.49382777]
[1758813445051,0.0002,4010.3,4010.2,2.49364121]
[1758813445446,0.0002,4010.3,4010.2,2.73444121]
[1758813446281,0.0002,4010.3,4010.2,6.98144121]
[1758813446474,0.0002,4010.3,4010.2,7.41434121]
[1758813447289,0.0002,4010.3,4010.2,6.98044121]
[1758813447450,0.0002,4010.3,4010.2,7.41143992]
[1758813447884,0.0002,4010.3,4010.2,7.84433992]
[1758813448463,0.0002,4010.3,4010.2,8.63633992]
[1758813449086,0.0002,4010.3,4010.2,11.63633992]
[1758813449599,0.001,4010.8,4010.7,3.28533034]
[1758813449800,0.001,4010.8,4010.7,19.43286337]
[1758813449964,0.001,4011.2,4011.1,3.28508169]
[1758813450167,0.001,4011.2,4011.1,10.53108169]
[1758813450522,0.001,4012.7,4011.1,10.53108169]
[1758813450523,0.001,4012.7,4012.6,3.28414972]
[1758813450675,0.001,4014.4,4013.3,2.49171504]
[1758813450867,0.001,4014.4,4013.3,3.31498762]
[1758813451080,0.001,4014.4,4013.3,10.28777047]
[1758813451372,0.2437,4014.4,4013.3,10.28777047]
[1758813451565,0.2437,4014.4,4013.3,3.29007047]
[1758813451566,0.4467,4014.1,4013.3,3.29007047]
[1758813451769,0.4467,4014.1,4013.3,7.53607047]
[1758813451770,0.2427,4013.7,4013.3,7.53607047]
[1758813452702,0.6894,4013.4,4013.3,6.73671504]
[1758813453788,0.6894,4013.4,4013.3,4.245]
[1758813454016,0.6894,4013.4,4013.3,2.49171504]
[1758813454872,0.001,4013.4,4013.3,6.73671504]
[1758813455070,0.001,4013.4,4013.3,6.86071504]
[1758813455306,0.001,4013.4,4013.3,7.79597047]
[1758813456168,0.0002,4013.4,4013.3,7.79597047]
[1758813456369,0.0002,4013.4,4013.3,2.61571504]
[1758813456592,0.2429,4013.4,4013.3,6.85971504]
[1758813456993,0.0002,4013.4,4013.3,6.85971504]
[1758813459690,0.0002,4013.4,4013.3,7.10051504]
[1758813460419,0.0002,4013.4,4013.3,6.85971504]
[1758813460748,0.0002,4013.4,4013.3,7.83815641]
[1758813460921,0.0002,4013.4,4013.3,8.06925641]
[1758813461803,0.0002,4013.4,4013.3,7.83815641]
[1758813462007,0.0002,4013.4,4013.3,6.85971504]
[1758813462879,0.0002,4013.4,4013.3,7.09081504]
[1758813463083,0.0002,4013.4,4013.3,7.54541504]
[1758813463727,0.0002,4013.4,4013.3,7.09081504]
[1758813463891,0.0002,4013.4,4013.3,2.61571504]
[1758813464096,0.0002,4013.4,4013.3,6.85871504]
[1758813466248,0.0002,4013.4,4013.3,6.85771504]
[1758813470142,0.0002,4013.4,4013.3,8.58517641]
[1758813470475,0.0002,4013.4,4013.3,11.58517641]
[1758813471934,0.0002,4013.4,4013.3,10.89947641]
[1758813472156,0.0002,4013.4,4013.3,13.20757641]
[1758813472358,0.0002,4013.4,4013.3,12.97647641]
[1758813473176,0.2415,4013.4,4013.3,4.56871504]
[1758813473358,0.6933,4013.4,4013.3,8.80971504]
[1758813473549,0.0002,4013.4,4013.3,8.80971504]
[1758813474282,0.0002,4013.4,4013.3,9.04081504]
[1758813474576,0.0002,4013.4,4013.3,2.49171504]
[1758813474729,0.0002,4013.4,4013.3,8.80871504]
[1758813474931,0.0002,4013.4,4013.3,10.23876641]
[1758813476763,0.0002,4013.4,4013.3,10.46986641]
[1758813479370,0.6933,4013.4,4013.3,6.73271504]
[1758813479566,0.2415,4013.4,4013.3,6.73271504]
[1758813479771,0.0002,4013.4,4013.3,6.73271504]
[1758813480168,0.0002,4013.4,4013.3,6.85671504]
[1758813480374,0.452,4013.4,4013.3,6.85671504]
[1758813480681,0.6933,4013.4,4013.3,6.85671504]
[1758813481083,0.6933,4013.4,4013.3,2.61571504]
[1758813481240,0.6933,4013.4,4013.3,2.49171504]
[1758813481637,0.0002,4013.4,4013.3,6.75763219]
[1758813481881,0.2419,4013.9,4013.8,2.49140465]
[1758813482054,0.2419,4013.9,4013.8,6.73240465]
[1758813482375,0.6937,4013.9,4013.5,2.49156847]
[1758813482544,0.6879,4013.8,4013.5,2.49156847]
[1758813482742,0.6879,4013.7,4013.6,2.49151214]
[1758813482943,0.6879,4013.7,4013.4,6.73260508]
[1758813483251,0.6879,4013.6,4013.5,2.49158106]
[1758813484885,0.6879,4013.6,4012.4,0.2441]
[1758813485048,0.6879,4013.6,4011.7,2.076]
[1758813485383,0.27639,4013.5,4012.4,0.742]
[1758813485569,5.49165296,4013.4,4012.4,3.23426034]
[1758813485768,3.6879,4013.4,4012.5,2.49219687]
[1758813486085,3.6879,4013.4,4012.5,2.4921813]
[1758813486295,6.17959511,4013.4,4012.4,6.73222252]
[1758813486497,3.0,4013.1,4011.1,0.2441]
[1758813486706,3.0,4012.9,4012.2,2.49238587]
[1758813486986,3.0,4012.9,4011.8,4.24]
[1758813486987,7.24,4012.9,4011.8,4.24]
[1758813487185,7.9279,4012.9,4011.8,4.24]
[1758813487407,7.9279,4012.9,4012.3,2.4923137]
[1758813487559,7.9279,4012.9,4011.8,4.24]
[1758813487891,10.41986341,4012.9,4011.9,2.4925472]
[1758813488101,11.21186341,4012.9,4011.3,4.56893097]
[1758813488382,12.85892191,4012.9,4011.3,2.076]
[1758813488544,12.85892191,4012.9,4011.2,0.868]
[1758813488748,0.792,4012.6,4011.2,0.868]
[1758813488979,0.792,4012.6,4010.7,2.077]
[1758813488980,0.792,4012.4,4010.9,2.49320569]
[1758813489155,2.4926306,4011.9,4010.9,2.49320284]
[1758813489361,0.6879,4011.8,4010.4,4.4851]
[1758813489565,0.2379,4011.7,4010.5,1.45908412]
[1758813489886,0.2379,4011.7,4011.4,2.49288572]
[1758813490058,0.45,4011.9,4011.5,2.49277599]
[1758813490264,0.45,4011.9,4011.1,0.2441]
[1758813490265,0.6879,4011.9,4011.1,0.2441]
[1758813490461,0.6879,4011.9,4011.6,2.49271293]
[1758813491088,0.2379,4011.9,4011.1,0.2441]
[1758813491284,0.2434,4012.2,4011.7,2.4926548]
[1758813491494,0.6917,4012.1,4011.2,0.2498]
[1758813491870,0.124,4011.9,4011.3,0.124]
[1758813492064,0.3674,4011.9,4011.6,0.002]
[1758813492591,0.8157,4011.9,4011.6,0.002]
[1758813492788,0.8157,4011.9,4011.6,2.49475891]
[1758813492988,0.5723,4011.9,4011.6,0.002]
[1758813493175,0.6917,4011.8,4011.6,0.002]
[1758813493557,0.6917,4011.7,4011.6,0.002]
[1758813493988,1.01013611,4011.7,4011.6,0.002]
[1758813494590,8.25113611,4011.7,4011.6,0.002]
[1758813494889,10.74384493,4011.7,4011.6,0.002]
[1758813495460,11.53584493,4011.7,4011.6,0.002]
[1758813496659,18.60584493,4011.7,4011.6,0.002]
[1758813498401,19.29104544,4011.7,4011.6,0.002]
[1758813498716,2.49326817,4010.8,4010.7,0.002]
[1758813498893,12.60326817,4010.8,4010.7,0.002]
[1758813499273,13.29496817,4010.8,4010.7,0.002]
[1758813499665,13.68606164,4010.8,4010.7,0.002]
[1758813500377,13.29496817,4010.8,4010.7,0.002]
[1758813500573,13.93053649,4010.8,4010.7,0.002]
[1758813501397,14.22470445,4010.8,4010.7,0.002]
[1758813501887,12.14870445,4010.8,4010.7,0.002]
[1758813502109,14.22670445,4010.8,4010.7,0.002]
[1758813502998,13.93253649,4010.8,4010.7,0.002]
[1758813503487,7.61253649,4010.8,4010.7,0.002]
[1758813503688,13.93253649,4010.8,4010.7,0.002]
[1758813504008,3.63556832,4010.8,4010.7,0.002]
[1758813504211,8.81326817,4010.8,4010.7,0.002]
[1758813504520,11.81326817,4010.8,4010.7,0.002]
[1758813504721,12.05666817,4010.8,4010.7,0.002]
[1758813505303,9.32,4010.8,4010.7,0.002]
[1758813505502,13.24389828,4010.8,4010.7,0.002]
[1758813505729,4.43063011,4010.8,4010.7,0.002]
[1758813505914,9.321,4010.8,4010.7,0.002]
[1758813506109,7.243,4010.8,4010.7,0.2518]
[1758813506921,7.243,4010.8,4010.7,0.002]
[1758813507125,10.42716817,4010.8,4010.7,0.002]
[1758813507504,17.49716817,4010.8,4010.7,0.002]
[1758813507828,16.76243336,4010.8,4010.7,0.002]
[1758813508124,16.51903336,4010.8,4010.7,0.002]
[1758813508590,18.59703336,4010.8,4010.7,0.002]
[1758813509228,12.27603336,4010.8,4010.7,0.002]
[1758813509409,10.0692,4010.8,4010.7,0.002]
[1758813509637,10.0692,4010.8,4010.7,0.2518]
[1758813509815,14.3122,4010.8,4010.7,0.7106]
[1758813510649,10.0692,4010.8,4010.7,3.20393034]
[1758813510851,14.3122,4010.8,4010.7,3.20393034]
[1758813511071,14.3122,4010.8,4010.7,0.2518]
[1758813512314,10.0692,4010.8,4010.7,2.74513034]
[1758813512522,11.313,4010.8,4010.7,3.20393034]
[1758813512838,11.437,4010.8,4010.7,0.7106]
[1758813513042,11.437,4010.8,4010.7,0.002]
[1758813513351,11.437,4010.8,4010.7,0.2518]
[1758813513554,11.437,4010.8,4010.7,2.74513034]
[1758813514121,11.437,4010.8,4010.7,0.002]
[1758813514320,12.4567,4010.8,4010.7,0.002]
[1758813514529,11.313,4010.8,4010.7,0.002]
[1758813514739,7.07,4010.8,4010.7,0.002]
[1758813514938,11.313,4010.8,4010.7,0.002]
[1758813515142,7.07,4010.8,4010.7,0.2518]
[1758813515341,7.07,4010.8,4010.7,3.20393034]
[1758813515560,7.07,4010.8,4010.7,3.06776118]
[1758813515771,0.39102768,4011.9,4010.7,1.30796414]
[1758813515934,0.396,4012.2,4012.1,2.4924603]
[1758813516133,0.396,4012.2,4012.1,3.2010603]
[1758813516370,0.396,4012.2,4010.9,4.243]
[1758813516570,0.2434,4012.1,4011.6,2.49275945]
[1758813516736,2.033,4012.0,4011.4,2.74268917]
[1758813517077,2.033,4012.0,4011.8,2.49259475]
[1758813517373,2.033,4012.0,4011.9,0.2498]
[1758813517531,2.033,4012.0,4011.9,2.74238456]
[1758813517736,2.033,4012.0,4011.7,2.49268621]
[1758813517737,4.243,4012.0,4011.7,2.49266462]
[1758813518074,4.243,4012.0,4011.5,0.2498]
[1758813518234,15.782724,4011.9,4011.5,0.2498]
[1758813518438,9.272755,4011.8,4011.7,2.49267862]
[1758813518638,13.072727,4011.9,4011.8,2.49264669]
[1758813518838,13.082727,4011.9,4011.8,2.49264669]
[1758813519149,13.082727,4011.9,4011.6,0.2498]
[1758813519334,13.082727,4011.9,4011.6,2.74256988]
[1758813519535,6.462621,4011.9,4011.6,2.74256988]
[1758813519732,3.0,4012.5,4011.7,0.7086]
[1758813519954,3.0,4012.3,4012.1,2.49241118]
[1758813520168,3.0,4012.1,4011.9,2.49257135]
[1758813520375,3.98429,4012.0,4011.9,2.49257135]
[1758813520571,4.242,4012.1,4011.5,2.4928331]
[1758813520902,4.242,4012.1,4012.0,2.49252243]
[1758813521277,4.242,4012.1,4012.0,0.2369]
[1758813521442,4.242,4012.1,4012.0,2.72942243]
[1758813521638,19.317831,4012.0,4011.9,2.49258456]
[1758813521841,18.319443,4012.0,4011.5,2.72971793]
[1758813522037,17.924791,4012.0,4011.6,2.72965295]
[1758813522376,17.924791,4012.0,4011.3,0.4677]
[1758813522552,20.1414701,4012.0,4011.2,0.2369]
[1758813522754,26.145765,4011.9,4011.6,2.49271586]
[1758813523077,11.494174,4011.6,4011.5,2.4928331]
[1758813523247,4.242,4011.8,4011.7,2.49270882]
[1758813523453,4.242,4011.8,4011.5,2.7297331]
[1758813523454,4.242,4011.8,4011.6,2.4927513]
[1758813523653,11.70173,4011.7,4011.6,2.4927513]
[1758813524073,0.2274,4012.6,4011.6,0.7046]
[1758813524276,0.124,4012.1,4012.0,2.49247354]
[1758813524442,4.366,4012.1,4012.0,2.72937354]
[1758813524643,4.366,4012.1,4012.0,0.2369]
[1758813524983,7.901252,4012.1,4012.0,0.2369]
[1758813525278,10.196123,4012.1,4012.0,0.2369]
[1758813525584,11.803732,4012.1,4012.0,0.2369]
[1758813525746,12.753649,4012.1,4012.0,0.2369]
[1758813526146,19.022306,4012.1,4012.0,0.2369]
[1758813526359,19.022306,4012.1,4011.4,2.61689177]
[1758813526584,24.633789,4012.0,4011.4,0.124]
[1758813526763,25.876404,4011.9,4011.6,2.49275844]
[1758813526966,20.274493,4011.9,4011.6,2.49275844]
[1758813527159,20.274493,4011.9,4011.7,2.49269054]
[1758813527355,12.770547,4011.8,4011.7,2.49269054]
[1758813527553,24.74154,4011.9,4011.6,2.49274789]
[1758813527751,4.242,4011.8,4011.4,0.124]
[1758813527969,3.0,4011.6,4010.7,0.002]
[1758813528157,0.124,4011.1,4010.8,2.49321141]
[1758813528357,14.678245,4011.0,4010.8,2.49321141]
[1758813528588,13.89167,4011.0,4010.7,0.002]
[1758813528759,12.853089,4011.0,4010.7,0.002]
[1758813528964,10.287042,4010.9,4010.7,0.002]
[1758813529272,0.124,4010.8,4010.7,0.002]
[1758813529450,16.383058,4010.8,4010.7,0.002]
[1758813529796,10.150077,4010.8,4010.7,2.49533034]
[1758813529960,19.217576,4010.8,4010.7,0.7066]
[1758813530166,18.017576,4010.8,4010.7,0.7066]
[1758813530362,18.017576,4010.8,4010.7,0.002]
[1758813530578,17.886075,4010.8,4010.7,0.002]
[1758813530768,15.58554,4010.8,4010.7,0.002]
[1758813531173,0.124,4010.9,4010.8,2.49326817]
[1758813531358,2.72091105,4012.1,4011.2,2.49300067]
[1758813531683,3.124,4011.4,4011.3,0.2369]
[1758813531881,5.545507,4011.4,4011.1,2.49306647]
[1758813532198,10.337307,4011.3,4010.7,0.002]
[1758813532352,0.124,4011.1,4010.7,2.49530851]
[1758813532688,18.382468,4011.0,4010.7,0.002]
[1758813532886,0.124,4010.8,4010.7,0.002]
[1758813533194,11.400342,4010.8,4010.7,2.49533034]
[1758813533415,2.715968,4010.8,4010.7,2.49533034]
[1758813533555,0.124,4010.8,4010.7,2.73223034]
[1758813533753,3.30629,4010.8,4010.7,2.73223034]
[1758813533955,4.242,4011.0,4010.7,1.22936697]
[1758813534155,9.463416,4010.9,4010.8,2.73016817]
[1758813534658,3.498834,4010.9,4010.8,3.19786817]
[1758813534965,0.124,4011.2,4011.1,2.49308169]
[1758813535280,0.124,4011.2,4011.0,2.49314385]
[1758813535483,7.557625,4011.1,4011.0,2.49314385]
[1758813535683,12.240333,4011.1,4010.9,2.49318807]
[1758813535848,10.762111,4011.0,4010.9,2.49318807]
[1758813536055,10.712447,4011.1,4011.0,2.49314385]
[1758813536281,0.124,4011.2,4011.0,2.49314385]
[1758813536588,4.54915,4011.1,4011.0,2.73004385]
[1758813537169,4.54915,4011.1,4011.0,2.49314385]
[1758813537494,4.70583,4011.1,4011.0,3.19772345]
[1758813537786,4.70583,4011.1,4010.7,0.002]
[1758813537992,4.93323,4011.1,4010.7,0.002]
[1758813538294,4.93323,4011.1,4010.8,2.49322693]
[1758813538295,12.881448,4011.0,4010.8,2.49322693]
[1758813538454,12.881448,4011.0,4010.7,0.002]
[1758813538455,12.881448,4011.0,4010.7,2.49532372]
[1758813538654,12.881448,4011.0,4010.7,0.002]
[1758813538888,12.881448,4011.0,4010.8,2.49322821]
[1758813539094,12.881448,4011.0,4010.7,2.49532712]
[1758813539251,0.7978,4010.9,4010.7,2.49532712]
[1758813539587,0.124,4010.9,4010.8,2.49326817]
[1758813539968,27.700969,4010.9,4010.8,2.49326817]
[1758813540159,33.474784,4010.9,4010.8,2.49326817]
[1758813540659,29.667719,4010.9,4010.8,2.49326817]
[1758813540891,7.194,4010.9,4010.8,2.49326817]